bitfinex/quotes_SOLUSD_20241123
["timestamp","ask_amount","ask_price","bid_price","bid_amount"]
[1732341718508,15.7207,258.56,258.3,11.0802]
[1732341718509,20.0,258.51,258.3,11.66063031]
[1732341719112,20.0,258.55,258.3,11.66063031]
[1732341719431,20.0,258.51,258.3,11.0802]
[1732341719613,6.6598,258.57,258.31,20.0]
[1732341719614,23.776884,258.56,258.31,20.0]
[1732341719820,20.0,258.55,258.31,20.0]
[1732341720346,23.776884,258.54,258.31,20.0]
[1732341720524,20.0,258.51,258.3,11.0802]
[1732341720706,20.0,258.49,258.3,11.0802]
[1732341721722,20.0,258.47,258.3,11.0802]
[1732341722334,23.776884,258.56,258.31,20.0]
[1732341722633,20.0,258.55,258.31,20.0]
[1732341723120,20.0,258.53,258.31,20.0]
[1732341723432,23.776884,258.52,258.31,20.0]
[1732341723636,23.776884,258.5,258.31,20.0]
[1732341724017,20.0,258.49,258.31,20.0]
[1732341726041,20.0,258.47,258.31,20.0]
[1732341726730,23.776884,258.44,258.3,11.0802]
[1732341726915,20.0,258.43,258.3,11.0802]
[1732341727110,20.0,258.43,258.31,0.09367462]
[1732341727314,20.0,258.41,258.31,0.09367462]
[1732341727627,20.0,258.41,258.38,0.09367462]
[1732341727831,20.0,258.41,258.4,0.09367462]
[1732341728735,1.541599,258.42,258.41,0.09367462]
[1732341731245,1.541599,258.42,258.38,0.09367462]
[1732341731534,23.776884,258.41,258.38,0.09367462]
[1732341731737,1.541599,258.42,258.38,0.09367462]
[1732341733316,4.26907559,258.42,258.38,0.09367462]
[1732341734639,23.776884,258.41,258.38,0.09367462]
[1732341735521,20.0,258.4,258.38,0.09367462]
[1732341737019,4.26907559,258.42,258.38,0.09367462]
[1732341737711,23.776884,258.41,258.38,0.09367462]
[1732341737916,20.0,258.4,258.38,0.09367462]
[1732341738324,4.26907559,258.42,258.38,0.09367462]
[1732341740736,1.541599,258.42,258.38,0.09367462]
[1732341742823,20.0,258.4,258.38,0.09367462]
[1732341744438,1.541599,258.42,258.38,0.09367462]
[1732341758751,2.68591882,258.46,258.38,0.09367462]
[1732341758929,6.4847,258.58,258.38,0.09367462]
[1732341759134,12.50488517,258.58,258.38,0.09367462]
[1732341760347,23.776884,258.51,258.38,0.09367462]
[1732341760558,22.6627,258.63,258.4,20.0]
[1732341760730,22.6627,258.63,258.39,11.0802]
[1732341761154,2.84924178,258.62,258.39,11.0802]
[1732341761458,2.84807293,258.61,258.39,11.0802]
[1732341761655,2.5,258.6,258.39,11.0802]
[1732341761845,23.776884,258.58,258.39,11.0802]
[1732341762159,20.0,258.53,258.39,11.0802]
[1732341762528,20.0,258.55,258.39,11.0802]
[1732341763058,23.776884,258.56,258.39,11.0802]
[1732341763059,20.0,258.53,258.39,11.0802]
[1732341763232,20.0,258.51,258.39,11.0802]
[1732341763428,20.0,258.49,258.39,11.0802]
[1732341765351,23.776884,258.58,258.39,11.0802]
[1732341765535,20.0,258.55,258.39,11.0802]
[1732341765854,20.0,258.51,258.39,11.0802]
[1732341766154,20.0,258.49,258.39,11.0802]
[1732341766653,20.0,258.45,258.33,11.0802]
[1732341767968,20.0,258.48,258.33,11.0802]
[1732341770253,2.85102752,258.47,258.33,11.0802]
[1732341770461,22.6627,258.51,258.33,11.0802]
[1732341770462,20.0,258.45,258.33,11.0802]
[1732341772150,2.84931309,258.44,258.33,11.0802]
[1732341772448,22.70662341,258.45,258.33,11.0802]
[1732341772648,22.70662341,258.45,258.28,1.6557]
[1732341772649,2.84927931,258.44,258.28,1.6557]
[1732341772835,2.84945968,258.43,258.28,1.6557]
[1732341773037,22.70662341,258.45,258.28,1.6557]
[1732341773241,23.776884,258.42,258.28,1.6557]
[1732341773578,22.84934009,258.41,258.28,1.6557]
[1732341773752,20.0,258.41,258.28,1.6557]
[1732341775658,20.0,258.39,258.28,1.6557]
[1732341777360,20.0,258.37,258.26,11.0802]
[1732341777563,23.776884,258.36,258.26,11.0802]
[1732341778267,23.776884,258.34,258.17,11.0802]
[1732341778455,23.776884,258.32,258.17,11.0802]
[1732341779163,20.0,258.36,258.17,11.0802]
[1732341779364,2.8482246,258.35,258.17,11.0802]
[1732341779665,20.0,258.36,258.17,11.0802]
[1732341780256,23.776884,258.37,258.18,20.0]
[1732341780455,22.84830583,258.36,258.18,20.0]
[1732341780655,20.0,258.38,258.18,20.0]
[1732341780856,20.0,258.36,258.18,20.0]
[1732341783452,23.776884,258.38,258.18,20.0]
[1732341783654,20.0,258.37,258.18,20.0]
[1732341784154,23.776884,258.36,258.18,20.0]
[1732341784570,20.0,258.35,258.18,20.0]
[1732341787167,2.62533253,258.38,258.18,20.0]
[1732341787373,6.4404,258.41,258.18,20.0]
[1732341787548,23.776884,258.4,258.18,20.0]
[1732341787757,2.84207938,258.39,258.18,20.0]
[1732341788548,22.84207938,258.39,258.18,20.0]
[1732341788877,22.84207938,258.38,258.18,20.0]
[1732341789049,20.0,258.38,258.18,20.0]
[1732341789474,20.0,258.39,258.18,20.0]
[1732341789673,2.84102739,258.38,258.18,20.0]
[1732341789856,20.0,258.39,258.18,20.0]
[1732341790052,2.84124776,258.38,258.18,20.0]
[1732341790251,20.0,258.39,258.18,20.0]
[1732341790975,2.84173573,258.38,258.18,20.0]
[1732341791376,2.84173573,258.38,258.21,11.0802]
[1732341791669,2.84173573,258.38,258.25,1.6557]
[1732341791974,6.3315,258.37,258.25,1.6557]
[1732341793361,6.3315,258.37,258.26,11.66077462]
[1732341793560,2.84173573,258.38,258.27,20.0]
[1732341793878,2.84173573,258.38,258.29,20.0]
[1732341800382,6.3315,258.42,258.29,20.0]
[1732341802564,6.3315,258.42,258.29,22.5]
[1732341802769,6.0498,258.53,258.29,22.5]
[1732341802978,22.84422587,258.52,258.29,22.5]
[1732341803276,6.0498,258.53,258.29,22.5]
[1732341803467,15.4097,258.56,258.31,13.5802]
[1732341803667,2.84406844,258.55,258.32,20.0]
[1732341803871,2.84406844,258.54,258.32,20.0]
[1732341804064,18.11198697,258.56,258.32,20.0]
[1732341805083,20.0,258.55,258.32,20.0]
[1732341805681,2.70228697,258.56,258.35,20.0]
[1732341805988,20.0,258.59,258.36,1.6557]
[1732341806160,2.84329116,258.58,258.36,1.6557]
[1732341806359,22.7340862,258.59,258.36,1.6557]
[1732341807077,2.84324689,258.58,258.36,1.6557]
[1732341807277,20.0,258.57,258.36,1.6557]
[1732341807588,20.0,258.55,258.36,1.6557]
[1732341809385,23.776884,258.54,258.36,1.6557]
[1732341809566,20.0,258.53,258.36,1.6557]
[1732341810583,20.0,258.49,258.34,11.0802]
[1732341811367,15.151,258.51,258.34,11.0802]
[1732341811368,20.0,258.5,258.34,11.0802]
[1732341812183,20.0,258.5,258.35,20.0]
[1732341812484,20.0,258.56,258.35,20.0]
[1732341812687,2.84190952,258.55,258.35,20.0]
[1732341812863,15.151,258.58,258.35,20.0]
[1732341813064,2.8422243,258.57,258.35,20.0]
[1732341813280,15.151,258.58,258.35,20.0]
[1732341814084,20.0,258.57,258.35,20.0]
[1732341814893,5.93066398,258.81,258.71,0.09367462]
[1732341815088,15.21619715,258.94,258.89,0.09367462]
[1732341815375,2.593674,259.01,258.92,0.09367462]
[1732341815574,15.21619715,259.18,258.94,0.09367462]
[1732341815781,2.83530671,259.16,258.94,0.09367462]
[1732341816097,2.83530671,259.15,258.94,0.09367462]
[1732341816292,10.36330798,259.17,258.94,0.09367462]
[1732341818678,20.0,259.16,258.94,0.09367462]
[1732341819271,20.0,259.14,258.94,0.09367462]
[1732341819478,20.0,259.12,258.94,0.09367462]
[1732341819690,23.776884,259.11,258.94,0.09367462]
[1732341820191,20.0,259.1,258.94,0.09367462]
[1732341821278,23.776884,259.07,258.94,0.09367462]
[1732341821481,20.0,259.08,258.94,0.09367462]
[1732341821681,10.36330798,259.17,258.94,0.09367462]
[1732341821984,23.776884,259.16,258.94,0.09367462]
[1732341823104,23.776884,259.14,258.94,0.09367462]
[1732341823471,20.0,259.13,258.94,0.09367462]
[1732341824304,20.0,259.16,258.94,0.09367462]
[1732341826497,4.27380798,259.17,259.0,0.09367462]
[1732341826498,1.537783,259.17,259.0,0.09367462]
[1732341826703,2.68162985,259.24,259.0,0.09367462]
[1732341827001,6.5848,259.33,259.01,0.09367462]
[1732341827379,6.5848,259.33,259.03,0.09367462]
[1732341828186,1.536804,259.32,259.03,0.09367462]
[1732341828396,21.536804,259.32,259.03,0.09367462]
[1732341828704,23.776884,259.29,259.03,0.09367462]
[1732341829000,20.0,259.24,259.03,0.09367462]
[1732341829176,20.0,259.22,259.03,0.09367462]
[1732341831078,22.68037242,259.22,259.03,0.09367462]
[1732341831987,20.0,259.2,259.03,0.09367462]
[1732341832687,23.776884,259.19,259.03,0.09367462]
[1732341833087,20.0,259.18,259.03,0.09367462]
[1732341835411,2.68037242,259.22,259.03,0.09367462]
[1732341835613,20.0,259.2,259.03,0.09367462]
[1732341836604,23.776884,259.19,259.03,0.09367462]
[1732341837003,20.0,259.16,259.03,0.09367462]
[1732341837194,20.0,259.14,259.03,0.09367462]
[1732341837397,20.0,259.12,259.03,0.09367462]
[1732341837706,20.0,259.1,259.03,0.09367462]
[1732341838209,23.776884,259.11,259.03,0.09367462]
[1732341838602,20.0,259.1,259.03,0.09367462]
[1732341839291,23.776884,259.09,259.03,0.09367462]
[1732341839491,20.0,259.08,259.03,0.09367462]
[1732341840425,2.60876699,259.1,259.03,0.09367462]
[1732341840595,20.0,259.13,259.03,0.09367462]
[1732341844315,20.0,259.11,259.03,0.09367462]
[1732341844495,20.0,259.09,259.03,0.09367462]
[1732341845109,20.0,259.11,259.03,0.09367462]
[1732341845309,20.0,259.12,259.03,0.09367462]
[1732341845495,20.0,259.09,259.03,0.09367462]
[1732341849224,20.0,259.07,259.03,0.09367462]
[1732341849611,20.0,259.05,259.03,0.09367462]
[1732341850201,20.0,259.09,259.03,0.09367462]
[1732341850519,20.0,259.07,259.03,0.09367462]
[1732341850722,23.776884,259.1,259.03,0.09367462]
[1732341852014,23.776884,259.08,259.03,0.09367462]
[1732341852216,20.0,259.07,259.03,0.09367462]
[1732341853333,20.0,259.05,259.03,0.09367462]
[1732341853715,23.776884,259.06,259.03,0.09367462]
[1732341853914,20.0,259.07,259.03,0.09367462]
[1732341855119,20.0,259.09,259.03,0.09367462]
[1732341856220,20.0,259.13,259.03,0.09367462]
[1732341856952,23.776884,259.12,259.03,0.09367462]
[1732341857140,20.0,259.11,259.03,0.09367462]
[1732341857515,20.0,259.13,259.03,0.09367462]
[1732341858215,2.63862075,259.14,259.03,0.09367462]
[1732341858413,20.0,259.19,259.03,0.09367462]
[1732341859018,6.1794,259.28,259.04,0.09367462]
[1732341859218,6.1794,259.28,259.06,0.09367462]
[1732341860231,8.86736165,259.28,259.06,0.09367462]
[1732341860836,23.776884,259.27,259.06,0.09367462]
[1732341861219,20.0,259.24,259.06,0.09367462]
[1732341861416,23.776884,259.23,259.06,0.09367462]
[1732341861612,20.0,259.2,259.06,0.09367462]
[1732341861820,23.776884,259.19,259.06,0.09367462]
[1732341862037,20.0,259.16,259.06,0.09367462]
[1732341862519,23.776884,259.15,259.06,0.09367462]
[1732341862721,20.0,259.14,259.06,0.09367462]
[1732341864420,20.0,259.27,259.06,0.09367462]
[1732341864619,20.0,259.23,259.06,0.09367462]
[1732341864826,20.0,259.21,259.06,0.09367462]
[1732341865022,20.0,259.19,259.06,0.09367462]
[1732341865322,23.776884,259.18,259.06,0.09367462]
[1732341865527,20.0,259.17,259.06,0.09367462]
[1732341866145,23.776884,259.27,259.06,0.09367462]
[1732341867127,8.86736165,259.28,259.06,0.09367462]
[1732341867838,8.86736165,259.28,259.08,0.09367462]
[1732341867839,2.68796165,259.28,259.08,0.09367462]
[1732341868019,1.536804,259.32,259.08,0.09367462]
[1732341868435,4.036804,259.32,259.08,0.09367462]
[1732341868835,2.85298505,259.31,259.08,0.09367462]
[1732341869135,23.776884,259.29,259.08,0.09367462]
[1732341869342,2.85293611,259.3,259.08,0.09367462]
[1732341869343,20.0,259.28,259.08,0.09367462]
[1732341869636,20.0,259.24,259.08,0.09367462]
[1732341870019,20.0,259.22,259.08,0.09367462]
[1732341870224,20.0,259.2,259.08,0.09367462]
[1732341872045,1.536804,259.32,259.08,0.09367462]
[1732341872338,2.85361296,259.31,259.08,0.09367462]
[1732341872545,2.85361296,259.3,259.08,0.09367462]
[1732341872717,2.85361296,259.29,259.08,0.09367462]
[1732341873044,4.16896322,259.32,259.08,0.09367462]
[1732341873249,20.0,259.3,259.08,0.09367462]
[1732341873542,20.0,259.27,259.08,0.09367462]
[1732341873747,23.776884,259.24,259.08,0.09367462]
[1732341873934,20.0,259.23,259.08,0.09367462]
[1732341874549,4.16896322,259.32,259.08,0.09367462]
[1732341874850,22.85227448,259.31,259.08,0.09367462]
[1732341875021,22.85227448,259.3,259.08,0.09367462]
[1732341875224,22.85227448,259.29,259.08,0.09367462]
[1732341875548,20.0,259.26,259.08,0.09367462]
[1732341875843,20.0,259.22,259.08,0.09367462]
[1732341876144,20.0,259.19,259.08,0.09367462]
[1732341876321,20.0,259.22,259.08,0.09367462]
[1732341876523,23.776884,259.19,259.08,0.09367462]
[1732341876829,20.0,259.2,259.08,0.09367462]
[1732341877031,20.0,259.18,259.08,0.09367462]
[1732341877538,20.0,259.16,259.08,0.09367462]
[1732341878668,23.63786805,259.3,259.08,0.09367462]
[1732341878820,23.776884,259.28,259.08,0.09367462]
[1732341879024,20.0,259.25,259.08,0.09367462]
[1732341879250,20.0,259.21,259.08,0.09367462]
[1732341879549,20.0,259.18,259.08,0.09367462]
[1732341880835,23.776884,259.17,259.08,0.09367462]
[1732341881148,23.776884,259.15,259.08,0.09367462]
[1732341882738,20.0,259.14,259.08,0.09367462]
[1732341883338,23.776884,259.13,259.08,0.09367462]
[1732341885033,20.0,259.1,258.86,5.97983508]
[1732341885234,20.0,259.1,258.88,2.5]
[1732341885434,20.0,259.1,258.89,0.57912594]
[1732341885646,20.0,259.12,258.89,0.57912594]
[1732341885853,23.776884,259.09,258.89,0.57912594]
[1732341886451,20.0,259.06,258.84,5.97983508]
[1732341886754,23.776884,259.03,258.92,11.0802]
[1732341887053,20.0,259.02,258.92,11.0802]
[1732341887436,23.776884,259.01,258.92,11.0802]
[1732341887635,23.776884,258.99,258.85,12.7359]
[1732341888737,20.0,258.98,258.85,12.7359]
[1732341889344,11.51,259.18,258.85,12.7359]
[1732341889345,15.22461995,259.24,258.95,22.5]
[1732341889556,2.84504591,259.23,258.95,22.5]
[1732341889745,2.84504591,259.22,258.97,20.0]
[1732341889948,8.8404,259.3,258.97,25.19510665]
[1732341889949,2.84504591,259.21,258.97,25.19510665]
[1732341890146,2.84504591,259.2,258.97,25.19510665]
[1732341890458,8.8404,259.3,258.98,1.6557]
[1732341890654,2.84536309,259.29,258.98,1.6557]
[1732341890838,2.84536309,259.28,258.98,1.6557]
[1732341891038,2.84536309,259.27,258.98,1.6557]
[1732341891252,2.84536309,259.26,258.98,1.6557]
[1732341891463,23.776884,259.24,258.98,1.6557]
[1732341891669,22.84553278,259.23,258.98,1.6557]
[1732341891961,2.84553278,259.22,258.98,1.6557]
[1732341894875,20.0,259.23,258.98,1.6557]
[1732341895044,2.84682889,259.22,258.98,1.6557]
[1732341896055,20.0,259.2,258.98,1.6557]
[1732341896357,2.84682889,259.19,258.98,1.6557]
[1732341896738,20.0,259.25,258.98,1.6557]
[1732341897045,20.0,259.21,258.98,1.6557]
[1732341897250,2.84761442,259.2,259.0,20.0]
[1732341897457,20.0,259.21,259.0,20.0]
[1732341897645,2.8473194,259.2,259.0,20.0]
[1732341897848,20.0,259.21,259.0,20.0]
[1732341898161,2.84675672,259.2,259.0,20.0]
[1732341898486,20.0,259.21,259.0,20.0]
[1732341898756,2.84674877,259.2,259.0,20.0]
[1732341898960,2.84674877,259.19,259.0,20.0]
[1732341899160,20.0,259.21,259.0,20.0]
[1732341899349,2.84722821,259.2,259.0,20.0]
[1732341899661,2.84722821,259.19,259.0,20.0]
[1732341899856,2.84789479,259.18,259.0,20.0]
[1732341900048,20.0,259.21,259.0,20.0]
[1732341900362,2.84796158,259.2,259.0,20.0]
[1732341900536,2.84796158,259.19,259.0,20.0]
[1732341900738,2.84796158,259.18,259.0,20.0]
[1732341900941,23.776884,259.19,259.0,20.0]
[1732341901141,22.84804778,259.18,259.0,20.0]
[1732341901354,2.84804778,259.17,259.0,20.0]
[1732341901557,20.0,259.18,259.0,20.0]
[1732341901762,2.84856657,259.17,259.0,20.0]
[1732341902061,20.0,259.19,259.0,20.0]
[1732341902244,2.84887081,259.18,259.0,20.0]
[1732341902445,20.0,259.19,259.02,20.0]
[1732341902642,2.84898884,259.18,259.02,20.0]
[1732341902843,2.84898884,259.17,259.02,20.0]
[1732341903061,23.776884,259.17,258.98,1.6557]
[1732341903242,22.84898884,259.16,258.98,1.6557]
[1732341903446,2.84898884,259.15,258.98,1.6557]
[1732341903646,20.0,259.16,258.98,1.6557]
[1732341903860,2.84918975,259.15,258.98,1.6557]
[1732341904054,20.0,259.16,258.98,1.6557]
[1732341904567,2.84886797,259.15,258.98,1.6557]
[1732341904943,2.84886797,259.14,258.98,1.6557]
[1732341905261,20.0,259.16,258.98,1.6557]
[1732341905440,2.84814565,259.15,258.98,1.6557]
[1732341905640,2.84791112,259.14,258.98,1.6557]
[1732341905840,23.776884,259.15,258.98,1.6557]
[1732341906064,20.0,259.14,258.98,1.6557]
[1732341907464,2.84770719,259.13,258.98,1.6557]
[1732341907669,20.0,259.14,258.98,1.6557]
[1732341908042,2.84771487,259.13,258.98,1.6557]
[1732341908255,20.0,259.18,258.98,1.6557]
[1732341908451,2.84681747,259.17,258.98,1.6557]
[1732341908650,2.84681747,259.16,258.98,1.6557]
[1732341908851,20.0,259.18,258.98,1.6557]
[1732341909064,2.84670781,259.17,258.98,1.6557]
[1732341909265,2.84670781,259.16,258.98,1.6557]
[1732341909564,20.0,259.18,258.98,1.6557]
[1732341909748,2.84685889,259.17,258.98,1.6557]
[1732341909948,20.0,259.2,258.98,1.6557]
[1732341910266,20.0,259.18,258.98,1.6557]
[1732341910475,2.84675376,259.17,258.98,1.6557]
[1732341911361,2.84675376,259.17,258.99,23.776884]
[1732341911555,2.84675376,259.17,259.0,20.0]
[1732341914939,23.776884,259.17,259.0,20.0]
[1732341915047,22.847109,259.16,259.0,20.0]
[1732341915258,22.847109,259.15,259.0,20.0]
[1732341915458,20.0,259.15,259.0,20.0]
[1732341915857,20.0,259.16,259.0,20.0]
[1732341918352,2.84610263,259.15,259.0,20.0]
[1732341918556,20.0,259.16,259.0,20.0]
[1732341918755,2.84603363,259.15,259.0,20.0]
[1732341918956,20.0,259.16,259.0,20.0]
[1732341919176,2.8459644,259.15,259.0,20.0]
[1732341919381,22.66928954,259.16,259.0,20.0]
[1732341919853,2.845871,259.15,258.98,1.6557]
[1732341920053,22.66928954,259.16,258.98,1.6557]
[1732341920269,2.84607212,259.15,258.98,1.6557]
[1732341920471,23.776884,259.12,258.98,1.6557]
[1732341920650,22.84607212,259.11,258.98,1.6557]
[1732341920847,20.0,259.09,258.9,1.6557]
[1732341921071,2.84542541,259.08,258.9,1.6557]
[1732341921272,20.0,259.09,258.9,1.6557]
[1732341921469,2.8449216,259.08,258.9,1.6557]
[1732341921676,2.8449216,259.07,258.9,1.6557]
[1732341921877,20.0,259.09,258.9,1.6557]
[1732341922173,2.84486906,259.08,258.9,1.6557]
[1732341922375,2.84486906,259.07,258.9,1.6557]
[1732341922577,20.0,259.09,258.9,1.6557]
[1732341922777,2.84524736,259.08,258.9,1.6557]
[1732341922963,2.84524736,259.07,258.9,1.6557]
[1732341923276,20.0,259.05,258.9,1.6557]
[1732341923574,2.84524736,259.04,258.9,1.6557]
[1732341923759,20.0,259.05,258.9,1.6557]
[1732341923962,2.84467452,259.04,258.9,1.6557]
[1732341927557,20.0,259.02,258.83,1.6557]
[1732341927753,23.776884,258.99,258.83,1.6557]
[1732341928073,20.0,258.98,258.83,1.6557]
[1732341928460,17.44066398,259.12,258.83,1.6557]
[1732341928461,23.776884,258.95,258.83,1.6557]
[1732341928663,20.0,258.94,258.83,1.6557]
[1732341928873,23.776884,258.95,258.83,1.6557]
[1732341929170,20.0,258.94,258.72,1.6557]
[1732341929760,23.776884,258.93,258.72,1.6557]
[1732341929967,20.0,258.88,258.72,1.6557]
[1732341930880,20.0,258.95,258.72,1.6557]
[1732341931087,20.0,258.93,258.72,1.6557]
[1732341932586,15.2732,258.98,258.72,1.6557]
[1732341932587,20.0,258.97,258.72,1.6557]
[1732341933068,17.99065711,258.98,258.72,1.6557]
[1732341933069,2.71745711,258.98,258.72,1.6557]
[1732341933277,6.3914,259.04,258.73,20.0]
[1732341933466,6.3914,259.04,258.76,2.5]
[1732341933659,6.3914,259.04,258.76,3.07936141]
[1732341935469,23.776884,259.03,258.76,3.07936141]
[1732341935859,23.776884,259.03,258.76,0.57936141]
[1732341937288,20.0,259.02,258.75,1.6557]
[1732341937468,23.776884,259.01,258.75,1.6557]
[1732341937788,20.0,258.98,258.75,1.6557]
[1732341937971,23.776884,258.97,258.75,1.6557]
[1732341941195,26.44485281,258.97,258.75,1.6557]
[1732341941378,20.0,258.96,258.75,1.6557]
[1732341946094,26.44485281,258.97,258.75,1.6557]
[1732341946497,2.66796881,258.97,258.81,2.5]
[1732341946671,15.7538,259.15,258.88,1.6557]
[1732341946995,2.8274285,259.14,258.89,0.5791862]
[1732341947166,2.71773689,259.15,258.89,0.5791862]
[1732341947365,6.1405,259.16,258.89,0.5791862]
[1732341947996,15.7538,259.21,258.89,0.5791862]
[1732341948585,20.0,259.2,258.89,0.5791862]
[1732341948791,2.5,259.25,258.91,1.6557]
[1732341949125,2.5,259.25,258.93,1.6557]
[1732341949126,5.32912211,259.24,258.93,1.6557]
[1732341949273,2.5,259.24,258.93,1.6557]
[1732341949882,2.5,259.23,258.93,1.6557]
[1732341950093,23.776884,259.2,258.93,1.6557]
[1732341950396,23.776884,259.18,258.93,1.6557]
[1732341950589,20.0,259.17,258.93,1.6557]
[1732341952303,20.0,259.13,258.93,1.6557]
[1732341952478,23.776884,259.12,258.93,1.6557]
[1732341956096,20.0,259.11,258.93,1.6557]
[1732341957177,23.776884,259.1,258.93,1.6557]
[1732341960778,20.0,259.09,258.93,1.6557]
[1732341960984,23.776884,259.08,258.93,1.6557]
[1732341963386,23.776884,259.06,258.93,1.6557]
[1732341963795,20.0,259.07,258.93,1.6557]
[1732341963993,20.0,259.1,258.93,1.6557]
[1732341964197,20.0,259.08,258.93,1.6557]
[1732341964378,23.776884,259.07,258.93,1.6557]
[1732341966919,20.0,259.08,258.82,20.0]
[1732341966920,23.776884,259.05,258.87,1.6557]
[1732341967287,23.776884,259.06,258.87,1.6557]
[1732341967591,23.776884,259.04,258.87,1.6557]
[1732341967916,23.776884,259.06,258.87,1.6557]
[1732341968734,23.776884,259.04,258.87,1.6557]
[1732341969804,23.776884,259.05,258.87,1.6557]
[1732341970593,1.42390949,259.05,258.87,1.6557]
[1732341970799,23.776884,259.04,258.87,1.6557]
[1732341971011,26.62470298,259.04,258.87,1.6557]
[1732341972412,35.8012,259.08,258.87,1.6557]
[1732341972641,23.776884,259.05,258.87,1.6557]
[1732341975002,20.0,259.07,258.87,1.6557]
[1732341975304,2.83904065,259.06,258.87,1.6557]
[1732341975610,2.68436857,259.08,258.87,1.6557]
[1732341975795,20.0,259.13,258.87,1.6557]
[1732341975796,22.83979268,259.07,258.87,1.6557]
[1732341975998,20.0,259.11,258.87,1.6557]
[1732341976206,20.0,259.09,258.87,1.6557]
[1732341976501,2.84082698,259.08,258.87,1.6557]
[1732341977088,2.84082698,259.08,258.87,2.23500433]
[1732341977292,15.3334,259.14,258.87,2.23500433]
[1732341977509,2.84200958,259.13,258.87,2.23500433]
[1732341977809,2.84200958,259.12,258.87,2.23500433]
[1732341978012,2.84200958,259.11,258.87,1.6557]
[1732341978189,2.84200958,259.1,258.87,1.6557]
[1732341978392,16.41064282,259.14,258.87,1.6557]
[1732341978393,2.84200958,259.09,258.87,1.6557]
[1732341978628,2.84200958,259.08,258.87,1.6557]
[1732341978792,23.776884,259.12,258.87,1.6557]
[1732341978989,23.776884,259.1,258.87,1.6557]
[1732341979214,2.84033503,259.09,258.87,1.6557]
[1732341979709,23.776884,259.1,258.87,1.6557]
[1732341979914,2.84113976,259.09,258.87,1.6557]
[1732341980119,23.776884,259.1,258.87,1.6557]
[1732341980307,2.84171016,259.09,258.87,1.6557]
[1732341980611,2.84171016,259.08,258.87,1.6557]
[1732341980917,23.776884,259.1,258.89,20.0]
[1732341981102,2.84161394,259.09,258.89,20.0]
[1732341981312,2.84161394,259.08,258.89,20.0]
[1732341981611,2.84161394,259.07,258.89,20.0]
[1732341981790,23.776884,259.1,258.89,20.0]
[1732341981995,2.84143883,259.09,258.89,20.0]
[1732341982221,2.84143883,259.08,258.89,20.0]
[1732341982532,2.62818819,259.1,258.89,20.0]
[1732341982818,20.0,259.13,258.89,20.0]
[1732341983012,2.84239213,259.12,258.89,20.0]
[1732341983211,2.84239213,259.11,258.89,20.0]
[1732341983418,2.84239213,259.1,258.89,20.0]
[1732341983741,20.0,259.17,258.89,20.0]
[1732341983938,20.0,259.15,258.9,1.6557]
[1732341984106,2.84307947,259.14,258.91,1.6557]
[1732341984305,2.72499365,259.17,258.91,1.6557]
[1732341984508,2.84387576,259.16,258.91,1.6557]
[1732341984716,2.84387576,259.15,258.91,1.6557]
[1732341984902,20.0,259.19,258.91,1.6557]
[1732341985217,2.84380852,259.18,258.91,1.6557]
[1732341985515,2.84380852,259.17,258.93,1.6557]
[1732341985720,20.0,259.23,258.95,1.6557]
[1732341985896,2.8444224,259.22,258.95,1.6557]
[1732341986097,2.8444224,259.21,258.95,1.6557]
[1732341986298,2.8444224,259.2,258.95,1.6557]
[1732341986518,2.84453956,259.19,259.06,2.5]
[1732341986821,23.776884,259.31,259.06,2.5]